[Event "Titled Tuesday Blitz April 12 Late 2022"]
[White "Quintiliano Pinto, Renato R."]
[Black "Melkumyan, Hrant"]
[WhiteFideId "2117568"]
[BlackFideId "13302485"]
[WhiteElo "2439"]
[BlackElo "2604"]
[Result "1-0"]
[Round "10"]
[TimeControl "180+1"]
[Date "2022.04.12"]
[WhiteClock "0:00:13"]
[BlackClock "0:00:35"]

1. d4 {[%clk 0:03:00]}  Nf6 {[%clk 0:02:57]} 2. c4 {[%clk 0:03:01]}  g6 {[%clk 0:02:58]} 3. Nf3 {[%clk 0:03:01]}  Bg7 {[%clk 0:02:57]} 4. e3 {[%clk 0:03:01]}  O-O {[%clk 0:02:57]} 5. Be2 {[%clk 0:03:02]}  c5 {[%clk 0:02:54]} 6. d5 {[%clk 0:03:02]}  d6 {[%clk 0:02:54]} 7. O-O {[%clk 0:03:01]}  e6 {[%clk 0:02:54]} 8. Nc3 {[%clk 0:03:01]}  exd5 {[%clk 0:02:55]} 9. cxd5 {[%clk 0:03:02]}  Bg4 {[%clk 0:02:55]} 10. Nd2 {[%clk 0:02:55]}  Bxe2 {[%clk 0:02:52]} 11. Qxe2 {[%clk 0:02:56]}  Re8 {[%clk 0:02:51]} 12. Rd1 {[%clk 0:02:47]}  Nbd7 {[%clk 0:02:51]} 13. a4 {[%clk 0:02:43]}  Ne5 {[%clk 0:02:50]} 14. h3 {[%clk 0:02:41]}  Rc8 {[%clk 0:02:49]} 15. Nc4 {[%clk 0:02:41]}  Nxc4 {[%clk 0:02:49]} 16. Qxc4 {[%clk 0:02:41]}  a6 {[%clk 0:02:46]} 17. Bd2 {[%clk 0:02:34]}  Qb6 {[%clk 0:02:45]} 18. Be1 {[%clk 0:01:36]}  Qb4 {[%clk 0:02:42]} 19. Qe2 {[%clk 0:01:27]}  Ne4 {[%clk 0:02:29]} 20. Nxe4 {[%clk 0:01:17]}  Qxe4 {[%clk 0:02:30]} 21. Bc3 {[%clk 0:01:14]}  Be5 {[%clk 0:02:17]} 22. a5 {[%clk 0:01:02]}  f5 {[%clk 0:02:08]} 23. Qd2 {[%clk 0:00:41]}  f4 {[%clk 0:02:04]} 24. exf4 {[%clk 0:00:38]}  Bxf4 {[%clk 0:02:02]} 25. Qd3 {[%clk 0:00:38]}  Kf7 {[%clk 0:01:49]} 26. Qf1 {[%clk 0:00:32]}  Qf5 {[%clk 0:01:29]} 27. Ra4 {[%clk 0:00:27]}  g5 {[%clk 0:01:23]} 28. Rd3 {[%clk 0:00:20]}  Kg6 {[%clk 0:01:16]} 29. Rf3 {[%clk 0:00:19]}  Re4 {[%clk 0:01:11]} 30. Rxe4 {[%clk 0:00:16]}  Qxe4 {[%clk 0:01:12]} 31. Qd1 {[%clk 0:00:16]}  Re8 {[%clk 0:01:00]} 32. g3 {[%clk 0:00:16]}  Be5 {[%clk 0:01:01]} 33. Re3 {[%clk 0:00:16]}  Qf5 {[%clk 0:00:57]} 34. Qe2 {[%clk 0:00:15]}  Kf6 {[%clk 0:00:35]} 35. Rf3 {[%clk 0:00:13]} 1-0


[Site "https://www.chess.com"]

[Event "Titled Tuesday Blitz April 12 Late 2022"]
[White "Reprintsev, Alexander"]
[Black "Broca Jimenez, Fernando"]
[WhiteFideId "14100541"]
[BlackFideId "5104742"]
[WhiteElo "2108"]
[BlackElo "2062"]
[Result "0-1"]
[Round "10"]
[TimeControl "180+1"]
[Date "2022.04.13"]
[WhiteClock "0:00:33"]
[BlackClock "0:00:19"]

1. e4 {[%clk 0:03:00]}  c5 {[%clk 0:02:56]} 2. b3 {[%clk 0:02:58]}  Nc6 {[%clk 0:02:53]} 3. Bb2 {[%clk 0:02:57]}  d6 {[%clk 0:02:53]} 4. Bb5 {[%clk 0:02:56]}  Bd7 {[%clk 0:02:52]} 5. Ne2 {[%clk 0:02:56]}  Nf6 {[%clk 0:02:49]} 6. f3 {[%clk 0:02:55]}  g6 {[%clk 0:02:48]} 7. d4 {[%clk 0:02:53]}  cxd4 {[%clk 0:02:44]} 8. Nxd4 {[%clk 0:02:53]}  Bg7 {[%clk 0:02:37]} 9. Nc3 {[%clk 0:02:52]}  O-O {[%clk 0:02:21]} 10. Nxc6 {[%clk 0:02:46]}  bxc6 {[%clk 0:02:22]} 11. Bd3 {[%clk 0:02:45]}  Qb6 {[%clk 0:02:15]} 12. Qe2 {[%clk 0:02:40]}  c5 {[%clk 0:02:01]} 13. g4 {[%clk 0:02:25]}  Bc6 {[%clk 0:01:41]} 14. O-O-O {[%clk 0:02:22]}  a5 {[%clk 0:01:40]} 15. a4 {[%clk 0:02:14]}  Rab8 {[%clk 0:01:17]} 16. Bb5 {[%clk 0:02:09]}  Nd7 {[%clk 0:01:07]} 17. Bxc6 {[%clk 0:02:06]}  Qxc6 {[%clk 0:01:08]} 18. Nb5 {[%clk 0:02:03]}  Bxb2+ {[%clk 0:01:00]} 19. Kxb2 {[%clk 0:02:04]}  c4 {[%clk 0:00:57]} 20. Qxc4 {[%clk 0:02:02]}  Qxc4 {[%clk 0:00:56]} 21. bxc4 {[%clk 0:02:02]}  Ne5 {[%clk 0:00:55]} 22. f4 {[%clk 0:01:35]}  Nxc4+ {[%clk 0:00:54]} 23. Kb3 {[%clk 0:01:35]}  Ne3 {[%clk 0:00:50]} 24. Rdg1 {[%clk 0:01:27]}  Rfc8 {[%clk 0:00:50]} 25. c3 {[%clk 0:01:26]}  Nc4 {[%clk 0:00:48]} 26. Rg3 {[%clk 0:01:20]}  Nd2+ {[%clk 0:00:45]} 27. Kc2 {[%clk 0:01:18]}  Nxe4 {[%clk 0:00:45]} 28. Re3 {[%clk 0:01:18]}  Nc5 {[%clk 0:00:40]} 29. Rxe7 {[%clk 0:01:15]}  Nxa4 {[%clk 0:00:37]} 30. Rb1 {[%clk 0:01:12]}  Nxc3 {[%clk 0:00:18]} 31. Nxd6 {[%clk 0:01:10]}  Nxb1+ {[%clk 0:00:16]} 32. Nxc8 {[%clk 0:01:10]}  Rxc8+ {[%clk 0:00:17]} 33. Kxb1 {[%clk 0:01:10]}  Rc4 {[%clk 0:00:17]} 34. f5 {[%clk 0:01:10]}  gxf5 {[%clk 0:00:18]} 35. gxf5 {[%clk 0:01:09]}  Rf4 {[%clk 0:00:18]} 36. Re5 {[%clk 0:01:09]}  a4 {[%clk 0:00:18]} 37. Kb2 {[%clk 0:01:06]}  h6 {[%clk 0:00:19]} 38. Ka3 {[%clk 0:01:06]}  Kg7 {[%clk 0:00:19]} 39. Re3 {[%clk 0:01:02]}  Kf6 {[%clk 0:00:19]} 40. Rh3 {[%clk 0:01:02]}  Kg5 {[%clk 0:00:18]} 41. f6 {[%clk 0:00:59]}  Rxf6 {[%clk 0:00:18]} 42. Kxa4 {[%clk 0:00:59]}  Rf4+ {[%clk 0:00:17]} 43. Kb3 {[%clk 0:00:58]}  h5 {[%clk 0:00:18]} 44. Rg3+ {[%clk 0:00:55]}  Rg4 {[%clk 0:00:17]} 45. Rf3 {[%clk 0:00:56]}  f5 {[%clk 0:00:18]} 46. Kc3 {[%clk 0:00:55]}  Rg2 {[%clk 0:00:18]} 47. h3 {[%clk 0:00:50]}  f4 {[%clk 0:00:18]} 48. Kd4 {[%clk 0:00:49]}  Rg3 {[%clk 0:00:19]} 49. h4+ {[%clk 0:00:41]}  Kg4 {[%clk 0:00:18]} 50. Rf1 {[%clk 0:00:41]}  Rf3 {[%clk 0:00:18]} 51. Rh1 {[%clk 0:00:40]}  Re3 {[%clk 0:00:19]} 52. Rh2 {[%clk 0:00:39]}  Re8 {[%clk 0:00:17]} 53. Rf2 {[%clk 0:00:34]}  Kg3 {[%clk 0:00:18]} 54. Rf1 {[%clk 0:00:34]}  f3 {[%clk 0:00:18]} 55. Rg1+ {[%clk 0:00:34]}  Kh3 {[%clk 0:00:18]} 56. Rg5 {[%clk 0:00:33]}  f2 {[%clk 0:00:18]} 57. Rf5 {[%clk 0:00:33]}  Kg2 {[%clk 0:00:18]} 58. Rg5+ {[%clk 0:00:34]}  Kf1 {[%clk 0:00:19]} 59. Rxh5 {[%clk 0:00:33]}  Ke1 {[%clk 0:00:19]} 0-1


[Site "https://www.chess.com"]

[Event "Titled Tuesday Blitz April 12 Late 2022"]
[White "Romanchuk, Viktor"]
[Black "Olcayoz, Alper"]
[WhiteFideId "14109271"]
[BlackFideId "6300405"]
[WhiteElo "2242"]
[BlackElo "2255"]
[Result "0-1"]
[Round "10"]
[TimeControl "180+1"]
[Date "2022.04.13"]
[WhiteClock "0:02:19"]
[BlackClock "0:02:25"]

1. d4 {[%clk 0:03:00]}  Nf6 {[%clk 0:02:58]} 2. c4 {[%clk 0:03:00]}  e5 {[%clk 0:02:59]} 3. dxe5 {[%clk 0:03:00]}  Ne4 {[%clk 0:02:59]} 4. Nd2 {[%clk 0:02:58]}  Nc5 {[%clk 0:02:41]} 5. Ngf3 {[%clk 0:02:56]}  Nc6 {[%clk 0:02:39]} 6. b3 {[%clk 0:02:51]}  d6 {[%clk 0:02:38]} 7. Bb2 {[%clk 0:02:44]}  dxe5 {[%clk 0:02:27]} 8. Nxe5 {[%clk 0:02:45]}  Nxe5 {[%clk 0:02:26]} 9. Bxe5 {[%clk 0:02:46]}  Qe7 {[%clk 0:02:26]} 10. Bc3 {[%clk 0:02:19]}  Nd3# {[%clk 0:02:25]} 0-1


[Site "https://www.chess.com"]

[Event "Titled Tuesday Blitz April 12 Late 2022"]
[White "Schekachikhin, Maksim"]
[Black "Estrada Nieto, Julian"]
[WhiteFideId "24177830"]
[BlackFideId "5101018"]
[WhiteElo "2230"]
[BlackElo "2252"]
[Result "1-0"]
[Round "10"]
[TimeControl "180+1"]
[Date "2022.04.13"]
[WhiteClock "0:00:59"]
[BlackClock "0:00:01"]

1. d4 {[%clk 0:03:00]}  Nf6 {[%clk 0:02:58]} 2. c4 {[%clk 0:03:00]}  e6 {[%clk 0:02:58]} 3. Nc3 {[%clk 0:03:01]}  c5 {[%clk 0:02:58]} 4. e3 {[%clk 0:02:59]}  d5 {[%clk 0:02:56]} 5. Nf3 {[%clk 0:02:58]}  dxc4 {[%clk 0:02:55]} 6. Bxc4 {[%clk 0:02:58]}  a6 {[%clk 0:02:56]} 7. O-O {[%clk 0:02:56]}  Nc6 {[%clk 0:02:56]} 8. a3 {[%clk 0:02:55]}  b5 {[%clk 0:02:47]} 9. Bd3 {[%clk 0:02:55]}  cxd4 {[%clk 0:02:47]} 10. exd4 {[%clk 0:02:54]}  Bb7 {[%clk 0:02:47]} 11. Bg5 {[%clk 0:02:54]}  Be7 {[%clk 0:02:47]} 12. Qd2 {[%clk 0:02:36]}  O-O {[%clk 0:02:46]} 13. Rad1 {[%clk 0:02:36]}  Nd5 {[%clk 0:02:42]} 14. Rfe1 {[%clk 0:02:32]}  Rc8 {[%clk 0:02:34]} 15. Nxd5 {[%clk 0:02:30]}  Qxd5 {[%clk 0:02:14]} 16. Be4 {[%clk 0:02:29]}  Qd6 {[%clk 0:02:00]} 17. d5 {[%clk 0:02:27]}  exd5 {[%clk 0:01:46]} 18. Bxd5 {[%clk 0:02:22]}  Qc7 {[%clk 0:01:08]} 19. Bxe7 {[%clk 0:02:15]}  Nxe7 {[%clk 0:01:07]} 20. Bxb7 {[%clk 0:02:15]}  Qxb7 {[%clk 0:01:06]} 21. h3 {[%clk 0:02:13]}  Ng6 {[%clk 0:01:04]} 22. Qd6 {[%clk 0:02:09]}  Rc6 {[%clk 0:00:49]} 23. Qd4 {[%clk 0:02:04]}  Rf6 {[%clk 0:00:42]} 24. h4 {[%clk 0:02:01]}  h6 {[%clk 0:00:34]} 25. h5 {[%clk 0:02:01]}  Nf4 {[%clk 0:00:32]} 26. Re5 {[%clk 0:01:52]}  Qc8 {[%clk 0:00:26]} 27. Qd7 {[%clk 0:01:45]}  Qc2 {[%clk 0:00:21]} 28. Rd2 {[%clk 0:01:34]}  Qb1+ {[%clk 0:00:20]} 29. Re1 {[%clk 0:01:32]}  Qf5 {[%clk 0:00:14]} 30. Qxf5 {[%clk 0:01:31]}  Rxf5 {[%clk 0:00:14]} 31. Rd6 {[%clk 0:01:30]}  a5 {[%clk 0:00:12]} 32. g4 {[%clk 0:01:23]}  Rc5 {[%clk 0:00:12]} 33. Re5 {[%clk 0:01:21]}  Rfc8 {[%clk 0:00:10]} 34. Rd8+ {[%clk 0:01:18]}  Rxd8 {[%clk 0:00:08]} 35. Rxc5 {[%clk 0:01:18]}  Rb8 {[%clk 0:00:08]} 36. Nd4 {[%clk 0:01:17]}  b4 {[%clk 0:00:07]} 37. Nc6 {[%clk 0:01:14]}  Re8 {[%clk 0:00:06]} 38. axb4 {[%clk 0:01:12]}  axb4 {[%clk 0:00:06]} 39. Nxb4 {[%clk 0:01:12]}  Re1+ {[%clk 0:00:06]} 40. Kh2 {[%clk 0:01:12]}  Re2 {[%clk 0:00:07]} 41. Kg3 {[%clk 0:01:11]}  Rxb2 {[%clk 0:00:07]} 42. Nc6 {[%clk 0:01:07]}  Ne6 {[%clk 0:00:06]} 43. Ra5 {[%clk 0:01:04]}  Rb3+ {[%clk 0:00:05]} 44. f3 {[%clk 0:01:04]}  Rc3 {[%clk 0:00:05]} 45. Ra8+ {[%clk 0:01:03]}  Kh7 {[%clk 0:00:05]} 46. Ne5 {[%clk 0:01:04]}  Nd4 {[%clk 0:00:03]} 47. Kg2 {[%clk 0:01:01]}  Rc2+ {[%clk 0:00:01]} 48. Kf1 {[%clk 0:00:59]} 1-0


[Site "https://www.chess.com"]

[Event "Titled Tuesday Blitz April 12 Late 2022"]
[White "Sellitti, Federico"]
[Black "Kavyev, Ruslan"]
[WhiteFideId "821829"]
[BlackFideId "34110981"]
[WhiteElo "2531"]
[BlackElo "2182"]
[Result "1-0"]
[Round "10"]
[TimeControl "180+1"]
[Date "2022.04.12"]
[WhiteClock "0:00:12"]
[BlackClock "0:00:18"]

1. e4 {[%clk 0:03:00]}  c5 {[%clk 0:02:49]} 2. Nc3 {[%clk 0:03:01]}  d6 {[%clk 0:02:49]} 3. g3 {[%clk 0:03:02]}  Nc6 {[%clk 0:02:49]} 4. Bg2 {[%clk 0:03:02]}  g6 {[%clk 0:02:49]} 5. d3 {[%clk 0:03:03]}  Bg7 {[%clk 0:02:50]} 6. Be3 {[%clk 0:03:04]}  Rb8 {[%clk 0:02:50]} 7. Qd2 {[%clk 0:03:04]}  b5 {[%clk 0:02:51]} 8. Nge2 {[%clk 0:03:03]}  Nd4 {[%clk 0:02:44]} 9. O-O {[%clk 0:02:54]}  h5 {[%clk 0:02:44]} 10. h3 {[%clk 0:02:44]}  Nf6 {[%clk 0:02:41]} 11. Nxd4 {[%clk 0:02:39]}  cxd4 {[%clk 0:02:37]} 12. Bxd4 {[%clk 0:02:40]}  O-O {[%clk 0:02:12]} 13. Be3 {[%clk 0:02:40]}  b4 {[%clk 0:02:11]} 14. Ne2 {[%clk 0:02:37]}  Bb7 {[%clk 0:02:08]} 15. Bh6 {[%clk 0:02:34]}  d5 {[%clk 0:02:07]} 16. Bxg7 {[%clk 0:02:34]}  Kxg7 {[%clk 0:02:06]} 17. e5 {[%clk 0:02:34]}  Nd7 {[%clk 0:02:06]} 18. f4 {[%clk 0:02:33]}  e6 {[%clk 0:02:04]} 19. Qxb4 {[%clk 0:01:51]}  Ba8 {[%clk 0:01:41]} 20. Qd4 {[%clk 0:01:48]}  Qc7 {[%clk 0:01:35]} 21. Rfc1 {[%clk 0:01:31]}  Rfc8 {[%clk 0:01:24]} 22. b3 {[%clk 0:01:19]}  a5 {[%clk 0:01:23]} 23. c4 {[%clk 0:01:15]}  dxc4 {[%clk 0:01:00]} 24. dxc4 {[%clk 0:01:16]}  Bxg2 {[%clk 0:00:56]} 25. Kxg2 {[%clk 0:01:17]}  a4 {[%clk 0:00:55]} 26. Rab1 {[%clk 0:01:13]}  axb3 {[%clk 0:00:32]} 27. axb3 {[%clk 0:01:13]}  Nc5 {[%clk 0:00:32]} 28. b4 {[%clk 0:01:11]}  Qb7+ {[%clk 0:00:28]} 29. Kh2 {[%clk 0:01:07]}  Qf3 {[%clk 0:00:27]} 30. Ng1 {[%clk 0:00:49]}  Qd3 {[%clk 0:00:23]} 31. Qxd3 {[%clk 0:00:43]}  Nxd3 {[%clk 0:00:24]} 32. Rc3 {[%clk 0:00:39]}  Rxb4 {[%clk 0:00:23]} 33. Rxb4 {[%clk 0:00:35]}  Nxb4 {[%clk 0:00:24]} 34. Nf3 {[%clk 0:00:33]}  Ra8 {[%clk 0:00:23]} 35. Nd4 {[%clk 0:00:27]}  Ra2+ {[%clk 0:00:23]} 36. Kg1 {[%clk 0:00:27]}  Rd2 {[%clk 0:00:23]} 37. Nf3 {[%clk 0:00:20]}  Rb2 {[%clk 0:00:16]} 38. Nd4 {[%clk 0:00:20]}  Rd2 {[%clk 0:00:14]} 39. Nf3 {[%clk 0:00:20]}  Re2 {[%clk 0:00:12]} 40. Kf1 {[%clk 0:00:16]}  Ra2 {[%clk 0:00:11]} 41. Nd4 {[%clk 0:00:16]}  Rd2 {[%clk 0:00:09]} 42. Nf3 {[%clk 0:00:16]}  Rb2 {[%clk 0:00:09]} 43. c5 {[%clk 0:00:16]}  Nd5 {[%clk 0:00:08]} 44. c6 {[%clk 0:00:15]}  Rb1+ {[%clk 0:00:07]} 45. Kg2 {[%clk 0:00:11]}  Rb2+ {[%clk 0:00:07]} 46. Kg1 {[%clk 0:00:11]}  Nxc3 {[%clk 0:00:07]} 47. c7 {[%clk 0:00:10]}  Rc2 {[%clk 0:00:08]} 48. Nd4 {[%clk 0:00:06]}  Ne2+ {[%clk 0:00:07]} 49. Nxe2 {[%clk 0:00:03]}  Rxc7 {[%clk 0:00:08]} 50. Kf2 {[%clk 0:00:04]}  Rc2 {[%clk 0:00:08]} 51. Ke3 {[%clk 0:00:04]}  Ra2 {[%clk 0:00:09]} 52. Kf3 {[%clk 0:00:04]}  Kf8 {[%clk 0:00:09]} 53. g4 {[%clk 0:00:04]}  Ra3+ {[%clk 0:00:08]} 54. Kg2 {[%clk 0:00:03]}  hxg4 {[%clk 0:00:09]} 55. hxg4 {[%clk 0:00:04]}  Ke7 {[%clk 0:00:09]} 56. Kf2 {[%clk 0:00:04]}  Kd7 {[%clk 0:00:10]} 57. Ng3 {[%clk 0:00:04]}  Kc6 {[%clk 0:00:09]} 58. Ne4 {[%clk 0:00:05]}  Kd5 {[%clk 0:00:10]} 59. Nd6 {[%clk 0:00:06]}  Ra7 {[%clk 0:00:07]} 60. Kf3 {[%clk 0:00:03]}  Kd4 {[%clk 0:00:07]} 61. Nb5+ {[%clk 0:00:03]}  Kc5 {[%clk 0:00:05]} 62. Nxa7 {[%clk 0:00:04]}  Kb6 {[%clk 0:00:06]} 63. Nc8+ {[%clk 0:00:04]}  Kc7 {[%clk 0:00:06]} 64. Nd6 {[%clk 0:00:05]}  f6 {[%clk 0:00:06]} 65. Ne4 {[%clk 0:00:04]}  f5 {[%clk 0:00:05]} 66. gxf5 {[%clk 0:00:04]}  gxf5 {[%clk 0:00:06]} 67. Ng5 {[%clk 0:00:04]}  Kd7 {[%clk 0:00:07]} 68. Ke3 {[%clk 0:00:05]}  Ke7 {[%clk 0:00:08]} 69. Kd4 {[%clk 0:00:05]}  Kd7 {[%clk 0:00:09]} 70. Kc5 {[%clk 0:00:06]}  Ke7 {[%clk 0:00:10]} 71. Kc6 {[%clk 0:00:06]}  Ke8 {[%clk 0:00:08]} 72. Nxe6 {[%clk 0:00:06]}  Ke7 {[%clk 0:00:09]} 73. Nd4 {[%clk 0:00:07]}  Kd8 {[%clk 0:00:10]} 74. Nxf5 {[%clk 0:00:07]}  Kc8 {[%clk 0:00:11]} 75. Nd4 {[%clk 0:00:07]}  Kd8 {[%clk 0:00:11]} 76. Kd6 {[%clk 0:00:08]}  Ke8 {[%clk 0:00:12]} 77. f5 {[%clk 0:00:09]}  Kd8 {[%clk 0:00:13]} 78. e6 {[%clk 0:00:09]}  Ke8 {[%clk 0:00:14]} 79. f6 {[%clk 0:00:10]}  Kd8 {[%clk 0:00:15]} 80. e7+ {[%clk 0:00:10]}  Ke8 {[%clk 0:00:16]} 81. Nc6 {[%clk 0:00:10]}  Kf7 {[%clk 0:00:17]} 82. Kd7 {[%clk 0:00:11]}  Kg8 {[%clk 0:00:16]} 83. e8=Q+ {[%clk 0:00:11]}  Kh7 {[%clk 0:00:17]} 84. Qf7+ {[%clk 0:00:11]}  Kh8 {[%clk 0:00:18]} 85. Qg7# {[%clk 0:00:12]} 1-0


[Site "https://www.chess.com"]

[Event "Titled Tuesday Blitz April 12 Late 2022"]
[White "Sheng, Joshua"]
[Black "Soysal, Serkan"]
[WhiteFideId "2057360"]
[BlackFideId "6349250"]
[WhiteElo "2142"]
[BlackElo "2440"]
[Result "1-0"]
[Round "10"]
[TimeControl "180+1"]
[Date "2022.04.12"]
[WhiteClock "0:00:48"]
[BlackClock "0:00:01"]

1. e4 {[%clk 0:03:00]}  e6 {[%clk 0:02:58]} 2. d4 {[%clk 0:03:00]}  d5 {[%clk 0:02:59]} 3. Nc3 {[%clk 0:03:01]}  Bb4 {[%clk 0:02:58]} 4. e5 {[%clk 0:03:01]}  c5 {[%clk 0:02:58]} 5. a3 {[%clk 0:03:01]}  Bxc3+ {[%clk 0:02:58]} 6. bxc3 {[%clk 0:03:02]}  Qa5 {[%clk 0:02:59]} 7. Bd2 {[%clk 0:03:01]}  Qa4 {[%clk 0:02:59]} 8. h4 {[%clk 0:03:02]}  Ne7 {[%clk 0:02:54]} 9. h5 {[%clk 0:03:02]}  h6 {[%clk 0:02:54]} 10. Nf3 {[%clk 0:03:01]}  b6 {[%clk 0:02:51]} 11. dxc5 {[%clk 0:02:59]}  bxc5 {[%clk 0:02:50]} 12. Rh4 {[%clk 0:02:59]}  Qd7 {[%clk 0:02:38]} 13. Rb1 {[%clk 0:02:57]}  Nec6 {[%clk 0:02:20]} 14. Rg4 {[%clk 0:02:47]}  Kf8 {[%clk 0:02:01]} 15. Be3 {[%clk 0:02:36]}  Qe7 {[%clk 0:01:45]} 16. c4 {[%clk 0:02:36]}  d4 {[%clk 0:01:41]} 17. Bc1 {[%clk 0:02:26]}  Nd7 {[%clk 0:01:39]} 18. Qe2 {[%clk 0:02:23]}  Rb8 {[%clk 0:01:23]} 19. Rxb8 {[%clk 0:02:22]}  Ncxb8 {[%clk 0:01:20]} 20. Qe4 {[%clk 0:02:18]}  Nb6 {[%clk 0:01:16]} 21. Rg3 {[%clk 0:02:16]}  Bb7 {[%clk 0:01:13]} 22. Qg4 {[%clk 0:02:16]}  f5 {[%clk 0:00:38]} 23. exf6 {[%clk 0:02:11]}  Qxf6 {[%clk 0:00:35]} 24. Bf4 {[%clk 0:01:59]}  N8d7 {[%clk 0:00:26]} 25. Nh4 {[%clk 0:01:58]}  Kf7 {[%clk 0:00:23]} 26. Ng6 {[%clk 0:01:51]}  Re8 {[%clk 0:00:20]} 27. Be2 {[%clk 0:01:44]}  e5 {[%clk 0:00:18]} 28. Bc1 {[%clk 0:01:43]}  e4 {[%clk 0:00:18]} 29. Qh3 {[%clk 0:01:39]}  Ne5 {[%clk 0:00:15]} 30. Nxe5+ {[%clk 0:01:37]}  Qxe5 {[%clk 0:00:16]} 31. Qg4 {[%clk 0:01:28]}  d3 {[%clk 0:00:14]} 32. Qg6+ {[%clk 0:01:25]}  Kf8 {[%clk 0:00:14]} 33. cxd3 {[%clk 0:00:57]}  Qc3+ {[%clk 0:00:14]} 34. Bd2 {[%clk 0:00:56]}  Qa1+ {[%clk 0:00:13]} 35. Bd1 {[%clk 0:00:54]}  exd3+ {[%clk 0:00:12]} 36. Re3 {[%clk 0:00:53]}  Rxe3+ {[%clk 0:00:09]} 37. Bxe3 {[%clk 0:00:53]}  Qc3+ {[%clk 0:00:09]} 38. Bd2 {[%clk 0:00:54]}  Qe5+ {[%clk 0:00:09]} 39. Kf1 {[%clk 0:00:54]}  Nxc4 {[%clk 0:00:10]} 40. Qxd3 {[%clk 0:00:50]}  Ba6 {[%clk 0:00:05]} 41. Qd8+ {[%clk 0:00:50]}  Qe8 {[%clk 0:00:02]} 42. Qxe8+ {[%clk 0:00:48]}  Kxe8 {[%clk 0:00:03]} 43. Ke1 {[%clk 0:00:49]}  Nxa3 {[%clk 0:00:04]} 44. Be3 {[%clk 0:00:48]}  c4 {[%clk 0:00:01]} 45. Bxa7 {[%clk 0:00:48]}  c3 {[%clk 0:00:01]} 46. Bc5 {[%clk 0:00:48]} 1-0


[Site "https://www.chess.com"]

[Event "Titled Tuesday Blitz April 12 Late 2022"]
[White "Shimanov, Aleksandr"]
[Black "Cabarkapa, Novak"]
[WhiteFideId "4198603"]
[BlackFideId "943746"]
[WhiteElo "2636"]
[BlackElo "2443"]
[Result "1-0"]
[Round "10"]
[TimeControl "180+1"]
[Date "2022.04.12"]
[WhiteClock "0:01:13"]
[BlackClock "0:00:01"]

1. d4 {[%clk 0:03:00]}  h5 {[%clk 0:02:57]} 2. e4 {[%clk 0:02:59]}  h4 {[%clk 0:02:58]} 3. Nc3 {[%clk 0:02:57]}  c6 {[%clk 0:02:57]} 4. Bg5 {[%clk 0:02:53]}  Qa5 {[%clk 0:02:50]} 5. Qd2 {[%clk 0:02:47]}  d6 {[%clk 0:02:35]} 6. h3 {[%clk 0:02:44]}  f6 {[%clk 0:02:13]} 7. Be3 {[%clk 0:02:43]}  e5 {[%clk 0:02:13]} 8. f4 {[%clk 0:02:41]}  Be6 {[%clk 0:02:06]} 9. Nf3 {[%clk 0:02:40]}  exf4 {[%clk 0:02:06]} 10. Bxf4 {[%clk 0:02:39]}  Bf7 {[%clk 0:02:04]} 11. Bd3 {[%clk 0:02:34]}  Nd7 {[%clk 0:02:03]} 12. O-O {[%clk 0:02:34]}  Be7 {[%clk 0:01:52]} 13. Rae1 {[%clk 0:02:30]}  O-O-O {[%clk 0:01:50]} 14. a3 {[%clk 0:02:28]}  g5 {[%clk 0:01:47]} 15. b4 {[%clk 0:02:27]}  Qc7 {[%clk 0:01:42]} 16. Bh2 {[%clk 0:02:26]}  Nh6 {[%clk 0:01:39]} 17. b5 {[%clk 0:02:19]}  g4 {[%clk 0:01:36]} 18. bxc6 {[%clk 0:02:18]}  bxc6 {[%clk 0:01:26]} 19. Ba6+ {[%clk 0:01:57]}  Kb8 {[%clk 0:01:26]} 20. Rb1+ {[%clk 0:01:58]}  Nb6 {[%clk 0:01:27]} 21. Nxh4 {[%clk 0:01:58]}  gxh3 {[%clk 0:01:23]} 22. gxh3 {[%clk 0:01:56]}  Ng4 {[%clk 0:01:10]} 23. Nf5 {[%clk 0:01:51]}  Nxh2 {[%clk 0:01:07]} 24. Kxh2 {[%clk 0:01:52]}  d5+ {[%clk 0:00:40]} 25. Qf4 {[%clk 0:01:50]}  Qxf4+ {[%clk 0:00:39]} 26. Rxf4 {[%clk 0:01:49]}  Bxa3 {[%clk 0:00:39]} 27. exd5 {[%clk 0:01:46]}  cxd5 {[%clk 0:00:35]} 28. Nb5 {[%clk 0:01:45]}  Bf8 {[%clk 0:00:34]} 29. Re1 {[%clk 0:01:40]}  Bg6 {[%clk 0:00:33]} 30. Ne7 {[%clk 0:01:38]}  Be8 {[%clk 0:00:28]} 31. Rxf6 {[%clk 0:01:29]}  Bh6 {[%clk 0:00:20]} 32. Nc6+ {[%clk 0:01:21]}  Bxc6 {[%clk 0:00:21]} 33. Rxc6 {[%clk 0:01:22]}  Bf4+ {[%clk 0:00:21]} 34. Kg2 {[%clk 0:01:22]}  Rdg8+ {[%clk 0:00:18]} 35. Kf3 {[%clk 0:01:21]}  Rf8 {[%clk 0:00:19]} 36. Ke2 {[%clk 0:01:15]}  Re8+ {[%clk 0:00:18]} 37. Kd1 {[%clk 0:01:15]}  Rxe1+ {[%clk 0:00:18]} 38. Kxe1 {[%clk 0:01:15]}  Rxh3 {[%clk 0:00:16]} 39. Rf6 {[%clk 0:01:15]}  Bh6 {[%clk 0:00:05]} 40. Rf7 {[%clk 0:01:14]}  Re3+ {[%clk 0:00:03]} 41. Kd1 {[%clk 0:01:13]}  Re6 {[%clk 0:00:01]} 42. Rb7+ {[%clk 0:01:13]}  Kc8 {[%clk 0:00:01]} 43. Re7+ {[%clk 0:01:13]} 1-0


[Site "https://www.chess.com"]

[Event "Titled Tuesday Blitz April 12 Late 2022"]
[White "Shuvalova, Polina"]
[Black "Khabinets, Ivan"]
[WhiteFideId "24171760"]
[BlackFideId "14115980"]
[WhiteElo "2355"]
[BlackElo "2114"]
[Result "1-0"]
[Round "10"]
[TimeControl "180+1"]
[Date "2022.04.12"]
[WhiteClock "0:02:12"]
[BlackClock "0:01:52"]

1. d4 {[%clk 0:03:00]}  d5 {[%clk 0:03:00]} 2. Nf3 {[%clk 0:03:01]}  e6 {[%clk 0:03:00]} 3. Bf4 {[%clk 0:03:01]}  Nf6 {[%clk 0:03:01]} 4. e3 {[%clk 0:03:02]}  Bd6 {[%clk 0:03:01]} 5. Bxd6 {[%clk 0:03:02]}  Qxd6 {[%clk 0:03:02]} 6. c4 {[%clk 0:03:03]}  O-O {[%clk 0:03:01]} 7. Nc3 {[%clk 0:03:03]}  c5 {[%clk 0:03:01]} 8. dxc5 {[%clk 0:03:02]}  Qxc5 {[%clk 0:03:02]} 9. cxd5 {[%clk 0:03:03]}  exd5 {[%clk 0:03:03]} 10. Rc1 {[%clk 0:03:00]}  Nc6 {[%clk 0:03:04]} 11. Bb5 {[%clk 0:02:51]}  Bg4 {[%clk 0:03:01]} 12. O-O {[%clk 0:02:47]}  Rac8 {[%clk 0:03:01]} 13. h3 {[%clk 0:02:45]}  Bxf3 {[%clk 0:02:58]} 14. Qxf3 {[%clk 0:02:44]}  Ne5 {[%clk 0:02:57]} 15. Qf4 {[%clk 0:02:42]}  Ng6 {[%clk 0:02:51]} 16. Qa4 {[%clk 0:02:41]}  a6 {[%clk 0:02:49]} 17. Bd3 {[%clk 0:02:41]}  Ne5 {[%clk 0:02:44]} 18. Bf5 {[%clk 0:02:40]}  Rcd8 {[%clk 0:02:39]} 19. Ne2 {[%clk 0:02:32]}  Qb6 {[%clk 0:02:39]} 20. Qd4 {[%clk 0:02:26]}  Qd6 {[%clk 0:02:31]} 21. Rfd1 {[%clk 0:02:26]}  Nc6 {[%clk 0:02:31]} 22. Qb6 {[%clk 0:02:24]}  Qe5 {[%clk 0:02:29]} 23. Bb1 {[%clk 0:02:21]}  Rd7 {[%clk 0:02:29]} 24. Nd4 {[%clk 0:02:18]}  Nxd4 {[%clk 0:02:24]} 25. Rxd4 {[%clk 0:02:19]}  Rfd8 {[%clk 0:02:20]} 26. a3 {[%clk 0:02:18]}  g6 {[%clk 0:02:18]} 27. Ba2 {[%clk 0:02:17]}  h5 {[%clk 0:02:12]} 28. Rcd1 {[%clk 0:02:14]}  Qf5 {[%clk 0:02:08]} 29. Rf4 {[%clk 0:02:13]}  Qc2 {[%clk 0:02:05]} 30. Bb3 {[%clk 0:02:12]}  Rd6 {[%clk 0:01:52]} 31. Qxd8+ {[%clk 0:02:12]}  Rxd8 {[%clk 0:01:52]} 32. Bxc2 {[%clk 0:02:12]} 1-0


[Site "https://www.chess.com"]